bitfinex/quotes_ETHUSD_20260126
["timestamp","ask_amount","ask_price","bid_price","bid_amount"]
[1769393344799,2.26935963,2869.3,2868.4,12.02683776]
[1769393344984,0.73,2869.5,2868.4,12.02683776]
[1769393345309,12.75658719,2869.6,2868.4,12.89840219]
[1769393345476,1.98594422,2869.7,2868.4,12.89840219]
[1769393345685,0.04355141,2869.6,2868.4,12.89840219]
[1769393346216,0.04355141,2869.6,2868.9,0.001]
[1769393346395,0.24650097,2869.6,2868.9,0.001]
[1769393346874,0.73,2869.7,2868.9,0.001]
[1769393347680,12.8001386,2869.6,2868.3,0.87157274]
[1769393347905,12.75658719,2869.6,2868.4,12.89839878]
[1769393348112,0.73,2869.7,2868.5,12.89836405]
[1769393348317,12.75658719,2869.9,2868.5,12.02683776]
[1769393348523,2.18445973,2869.8,2868.7,12.02683776]
[1769393348883,1.45445973,2869.8,2868.7,12.02683776]
[1769393349905,15.08219492,2869.8,2868.7,12.02683776]
[1769393350107,15.03864351,2869.8,2868.7,12.02683776]
[1769393350307,0.04355141,2869.7,2868.7,12.02683776]
[1769393350518,1.50821949,2869.6,2868.7,12.02683776]
[1769393350719,1.50821949,2869.6,2868.6,1.55130622]
[1769393351925,14.26480668,2869.6,2868.6,1.55130622]
[1769393352089,12.8001386,2869.5,2868.2,0.87162631]
[1769393352291,12.75658719,2869.5,2868.2,0.87162631]
[1769393352491,12.8001386,2869.4,2868.3,0.8715964]
[1769393352792,0.73,2869.6,2868.5,12.02683776]
[1769393353029,0.77355141,2869.6,2868.5,12.89836704]
[1769393353341,0.04355141,2869.7,2868.6,0.03486021]
[1769393353543,0.77355141,2869.7,2868.6,12.06169797]
[1769393353692,0.77355141,2869.7,2868.6,12.02683776]
[1769393353893,2.35476836,2869.7,2868.7,1.2898367]
[1769393354540,2.35476836,2869.7,2868.7,13.35153345]
[1769393354727,2.35476836,2869.7,2868.7,13.31667446]
[1769393355055,0.002,2870.4,2868.9,12.02683776]
[1769393355056,13.62757729,2870.3,2868.9,12.02683776]
[1769393355331,0.77355097,2870.2,2869.0,12.06169311]
[1769393355540,13.53013816,2870.2,2869.0,12.02683776]
[1769393355698,13.48658719,2870.2,2869.0,12.02683776]
[1769393355902,12.8001386,2870.1,2869.0,12.02683776]
[1769393356104,0.56808714,2870.0,2869.1,1.20268378]
[1769393356907,0.56808714,2870.0,2869.1,13.69251653]
[1769393357305,1.60102294,2870.2,2869.1,13.69251653]
[1769393357306,0.04355141,2870.1,2869.1,13.69251653]
[1769393358137,12.17880771,2870.0,2868.7,13.77966945]
[1769393358329,0.04355141,2869.9,2868.7,14.65113975]
[1769393358639,0.73,2869.8,2868.9,12.48983275]
[1769393358811,3.48585745,2870.4,2868.9,13.36124485]
[1769393359136,0.73,2869.9,2868.9,12.48983275]
[1769393359339,0.73,2869.9,2868.7,1.2898367]
[1769393359340,12.17880771,2869.7,2868.7,1.2898367]
[1769393359632,12.17880771,2869.5,2868.9,0.001]
[1769393360209,0.002,2869.8,2868.9,0.001]
[1769393360414,0.002,2869.8,2868.9,12.52568931]
[1769393360610,0.002,2869.8,2868.9,12.49083275]
[1769393360811,0.002,2869.8,2869.0,13.73891602]
[1769393361255,12.22435912,2869.8,2868.6,12.48983275]
[1769393361540,13.05196006,2869.8,2868.3,14.09140771]
[1769393361742,13.05196006,2869.8,2868.4,12.50745826]
[1769393361926,13.05196006,2869.8,2868.4,12.48983275]
[1769393362532,12.17880771,2869.6,2868.4,12.48983275]
[1769393362739,13.40104362,2869.5,2868.4,13.89897541]
[1769393363746,13.40104362,2869.5,2868.0,12.48983275]
[1769393363935,12.17880771,2869.3,2868.0,14.09150395]
[1769393364130,12.17880771,2869.3,2868.2,12.48983275]
[1769393364542,12.17880771,2869.3,2868.2,13.36145774]
[1769393364710,1.21788077,2869.2,2868.3,13.82597852]
[1769393364915,12.22235912,2869.4,2868.3,13.82597852]
[1769393365111,12.17880771,2869.4,2868.3,13.82597852]
[1769393365545,0.73,2869.3,2868.3,13.82597852]
[1769393365843,0.77355141,2869.3,2868.3,13.82597852]
[1769393366349,0.73,2869.3,2868.3,14.69754728]
[1769393366648,0.73,2869.3,2868.5,12.48983275]
[1769393369670,12.90880771,2869.3,2868.3,1.33614577]
[1769393369883,12.90880771,2869.3,2868.0,14.09151751]
[1769393370182,12.90880771,2869.3,2868.1,0.87165407]
[1769393370393,12.90880771,2869.3,2868.1,13.3963531]
[1769393370559,12.90880771,2869.3,2868.1,13.36148682]
[1769393370760,0.04355141,2869.2,2868.1,13.36148682]
[1769393371057,1.33878732,2869.2,2868.2,1.40914868]
[1769393371264,1.29523591,2869.2,2868.2,1.40914868]
[1769393371588,1.29523591,2869.2,2868.2,13.89898143]
[1769393372589,1.29523591,2869.2,2868.6,0.001]
[1769393372887,1.29523591,2869.2,2868.2,13.36145754]
[1769393373056,1.29523591,2869.2,2868.3,13.8259785]
[1769393373671,0.77355141,2869.4,2868.3,13.8259785]
[1769393374189,13.42597963,2869.4,2868.3,13.8259785]
[1769393374375,13.38242822,2869.4,2868.3,13.8259785]
[1769393377079,12.65242822,2869.4,2868.3,14.69756693]
[1769393378305,12.65242822,2869.4,2868.3,13.8259785]
[1769393378505,14.07799152,2869.4,2868.4,1.38259785]
[1769393378883,14.07799152,2869.4,2868.2,0.87160845]
[1769393379122,14.07799152,2869.4,2868.2,0.90647352]
[1769393379508,14.07799152,2869.4,2868.3,0.87158361]
[1769393380206,14.07799152,2869.4,2868.4,0.87155854]
[1769393380520,14.80799152,2869.4,2868.3,0.87158205]
[1769393380745,12.65242822,2869.2,2868.2,12.45206381]
[1769393381015,12.65242822,2869.2,2868.2,13.32368662]
[1769393381221,12.65242822,2869.2,2868.3,0.03486385]
[1769393381407,12.65242822,2869.2,2868.2,13.32368662]
[1769393381607,12.65242822,2869.2,2868.3,0.03486385]
[1769393381803,12.65242822,2869.2,2868.4,1.33585505]
[1769393382811,1.48079915,2869.3,2868.4,13.78791886]
[1769393383012,0.73,2869.3,2868.4,13.78791886]
[1769393383190,0.73,2869.4,2868.5,12.48692523]
[1769393383391,0.002,2869.6,2868.5,12.45206381]
[1769393383600,7.16510812,2869.4,2868.7,12.45206381]
[1769393383805,7.16510812,2869.4,2868.8,1.3216924]
[1769393384000,7.16510812,2869.4,2868.7,12.45206381]
[1769393384613,0.002,2869.6,2868.7,12.45206381]
[1769393384812,12.65442822,2870.5,2869.1,12.45206381]
[1769393385118,0.002,2870.5,2869.3,12.45206381]
[1769393385314,0.002,2870.5,2869.5,12.45206381]
[1769393385511,0.002,2869.2,2868.9,13.32347546]
[1769393385935,0.002,2869.2,2869.0,0.03485535]
[1769393386510,0.002,2869.2,2868.8,0.73]
[1769393386822,0.002,2869.2,2868.8,0.03485778]
[1769393387435,0.002,2869.2,2868.8,0.90630031]
[1769393387639,0.002,2869.2,2868.8,0.03485778]
[1769393387834,0.002,2869.2,2868.8,0.90629781]
[1769393388034,0.002,2869.2,2868.8,0.03485778]
[1769393388831,0.002,2869.2,2868.7,0.76485899]
[1769393389429,0.002,2869.2,2868.4,0.001]
[1769393390453,0.002,2869.2,2868.4,0.87255664]
[1769393390617,0.002,2869.2,2868.4,12.96545416]
[1769393390822,0.002,2869.2,2868.7,12.45206381]
[1769393391022,0.002,2869.2,2868.8,0.03485778]
[1769393394240,0.002,2869.2,2868.7,12.45206381]
[1769393394663,0.002,2869.2,2868.5,13.32357902]
[1769393394822,0.002,2869.2,2868.6,0.03486021]
[1769393395851,0.002,2869.2,2868.4,0.001]
[1769393395852,12.65442822,2869.2,2868.4,0.001]
[1769393396432,12.65442822,2869.2,2868.1,0.76486628]
[1769393396750,13.38442822,2869.2,2867.7,0.90664421]
[1769393396926,12.65242822,2869.0,2867.7,0.03487115]
[1769393397463,12.65242822,2869.0,2867.6,0.73]
[1769393397618,13.52381826,2869.0,2867.6,1.63667117]
[1769393398251,13.52381826,2869.0,2868.6,0.001]
[1769393398452,12.65242822,2869.0,2867.6,1.63667117]
[1769393398623,12.65242822,2868.8,2867.6,14.08873498]
[1769393398824,12.65242822,2868.8,2867.6,14.05386262]
[1769393399156,12.65242822,2868.8,2867.7,0.03487115]
[1769393400463,12.65242822,2868.8,2867.7,0.9066431]
[1769393400779,1.33844282,2869.1,2867.7,13.35870691]
[1769393400944,12.65242822,2869.1,2867.7,13.32383576]
[1769393401155,12.65242822,2869.1,2867.8,0.03486993]
[1769393401453,10.81552508,2869.1,2867.7,12.45206381]
[1769393401667,13.38242822,2869.0,2867.8,0.03486993]
[1769393401863,14.25381612,2869.0,2867.8,0.03486993]
[1769393402073,12.65242822,2868.8,2867.6,0.73]
[1769393402274,12.65242822,2868.8,2867.6,1.63667303]
[1769393402482,12.65242822,2868.8,2867.6,0.73]
[1769393402684,1.42538161,2868.9,2867.6,1.60178973]
[1769393402685,12.65242822,2868.6,2867.6,1.60178973]
[1769393403077,12.65242822,2868.6,2867.6,0.73]
[1769393403252,13.89775402,2868.5,2867.6,0.73]
[1769393404873,12.5595112,2868.3,2867.0,0.87197212]
[1769393405074,12.5595112,2868.3,2867.1,0.00875608]
[1769393405274,12.5595112,2868.3,2867.0,0.87198893]
[1769393406063,12.5595112,2868.1,2866.5,12.47048543]
[1769393406285,0.94819781,2868.2,2866.6,0.00876718]
[1769393406286,12.5595112,2867.8,2866.6,0.00876718]
[1769393406876,12.5595112,2867.8,2866.7,0.87206282]
[1769393407053,12.5595112,2867.8,2866.6,0.00876718]
[1769393407054,1.3507709,2868.0,2866.9,13.34249921]
[1769393407392,0.73,2868.2,2867.0,12.47924728]
[1769393407685,1.33824282,2868.5,2867.1,12.47924287]
[1769393407874,1.33824282,2868.5,2867.3,12.47048543]
[1769393408077,2.06824282,2868.5,2867.4,0.8806183]
[1769393408279,1.33824282,2868.5,2867.4,0.8806183]
[1769393410554,0.73,2868.6,2867.4,0.8806183]
[1769393410870,13.2895112,2868.6,2867.4,0.8806183]
[1769393411069,12.5595112,2869.1,2867.4,13.35110373]
[1769393411285,12.5595112,2869.1,2867.4,13.34235541]
[1769393411482,13.88866232,2869.1,2867.6,12.47048543]
[1769393411684,13.88866232,2869.1,2867.8,12.47048543]
[1769393411886,0.002,2869.2,2867.9,12.47921719]
[1769393412061,0.002,2869.2,2868.1,12.47048543]
[1769393412267,0.002,2869.2,2868.3,13.34208184]
[1769393415300,0.002,2869.2,2868.3,14.07208184]
[1769393415698,0.002,2869.2,2868.5,12.47048543]
[1769393415996,0.002,2869.2,2868.6,1.24792075]
[1769393416389,0.002,2869.2,2868.4,0.00871793]
[1769393417496,0.002,2869.4,2868.5,11.85131058]
[1769393418068,0.002,2869.4,2868.6,0.00871596]
[1769393418330,0.002,2869.4,2868.8,12.72275508]
[1769393418472,0.002,2869.4,2868.3,0.73]
[1769393418808,0.002,2869.4,2868.7,0.87147477]
[1769393419164,0.002,2869.4,2868.7,12.73149827]
[1769393419400,0.002,2869.4,2868.7,12.72278535]
[1769393420218,0.002,2869.4,2868.8,0.00871262]
[1769393420727,0.002,2869.4,2868.8,0.88014708]
[1769393421019,0.002,2869.4,2868.9,0.67229548]
[1769393421384,0.002,2869.2,2868.9,0.68100506]
[1769393422403,0.002,2869.2,2868.9,1.41100506]
[1769393422610,0.002,2869.4,2869.0,0.87138375]
[1769393422794,0.002,2869.4,2869.1,0.00870759]
[1769393422995,0.002,2869.4,2869.1,0.23694627]
[1769393424990,0.002,2869.4,2869.1,1.10827896]
[1769393425186,12.95556221,2870.3,2869.1,1.10827896]
[1769393425523,12.95556221,2870.3,2869.1,0.23694627]
[1769393425708,12.95556221,2870.3,2869.1,1.10829864]
[1769393425914,0.002,2870.4,2869.1,0.23694627]
[1769393425915,14.25131843,2870.2,2869.1,0.23694627]
[1769393426115,14.25131843,2870.2,2869.1,1.10829382]
[1769393426513,14.25131843,2870.2,2869.1,0.23694627]
[1769393426821,14.25131843,2870.2,2869.1,1.1082966]
[1769393427623,14.25131843,2870.2,2869.1,12.95960718]
[1769393427925,0.002,2870.4,2869.3,11.85131058]
[1769393428123,0.002,2870.4,2869.4,0.00868892]
[1769393428304,12.95756221,2870.4,2869.4,0.00868892]
[1769393428720,12.95756221,2870.4,2868.7,18.22131058]
[1769393428721,12.99911166,2870.3,2868.7,18.22131058]
[1769393428920,12.95556221,2870.3,2868.8,0.87142015]
[1769393429095,12.95556221,2870.1,2868.8,0.87142015]
[1769393429296,12.95556221,2869.9,2868.8,0.87142015]
[1769393429601,12.95556221,2869.9,2868.9,1.60140023]
[1769393430508,12.95556221,2869.9,2868.9,0.73]
[1769393430709,0.04355704,2869.8,2868.9,0.73]
[1769393430912,12.95556221,2869.8,2868.9,0.73]
[1769393431111,1.29991177,2869.7,2868.9,0.73]
[1769393433132,1.29991177,2869.7,2868.9,1.60141156]
[1769393433430,1.29991177,2869.7,2869.1,0.001]
[1769393433734,13.96184004,2869.7,2869.1,0.001]
[1769393434400,13.96184004,2869.7,2868.1,11.9124915]
[1769393434700,13.96184004,2869.7,2868.7,0.87146991]
[1769393434701,14.05611227,2869.6,2868.7,0.87146991]
[1769393435102,14.05611227,2869.6,2868.5,0.87151442]
[1769393435516,14.05611227,2869.6,2868.4,0.87156602]
[1769393436133,14.05611227,2869.6,2868.4,12.78405752]
[1769393436311,1.47881123,2869.5,2868.5,0.74683449]
[1769393437003,14.1387395,2869.5,2868.4,11.9124915]
[1769393437807,14.1387395,2869.5,2868.5,0.87153564]
[1769393438907,14.1387395,2869.5,2868.5,12.78402714]
[1769393440610,0.002,2869.7,2868.5,12.78402714]
[1769393440816,0.002,2869.7,2868.7,11.9124915]
[1769393441128,0.002,2869.7,2868.8,0.73]
[1769393441334,12.66192827,2869.7,2868.8,0.73]
[1769393441632,13.9261211,2869.6,2868.5,1.60153564]
[1769393444019,13.9261211,2869.6,2868.5,13.51402714]
[1769393444623,12.65992827,2869.6,2868.5,13.51402714]
[1769393444822,0.002,2869.7,2868.5,13.51402714]
[1769393446155,0.002,2869.7,2868.6,11.9124915]
[1769393446351,0.002,2869.7,2868.7,11.9124915]
[1769393447077,0.002,2869.7,2868.8,0.73]
[1769393447355,0.002,2869.7,2869.0,0.87138375]
[1769393447558,0.002,2869.4,2869.0,0.87138375]
[1769393448020,0.002,2869.4,2868.9,1.86020293]
[1769393449458,0.002,2869.4,2868.9,11.01826609]
[1769393450779,0.002,2869.4,2868.9,1.86020293]
[1769393451075,0.002,2869.4,2869.0,0.60759551]
[1769393451668,12.66192827,2869.4,2868.8,0.73]
[1769393451972,12.66192827,2869.4,2868.6,0.001]
[1769393451973,12.66192827,2869.4,2868.7,0.8714475]
[1769393452784,12.66192827,2869.4,2868.7,0.87145545]
[1769393453358,12.66192827,2869.4,2868.8,0.87143931]
[1769393453543,12.66192827,2869.4,2868.8,1.30728341]
[1769393453767,12.66192827,2869.4,2868.8,0.4358441]
[1769393454170,12.66192827,2869.4,2868.8,1.30727936]
[1769393455782,0.002,2869.4,2868.8,1.30727936]
[1769393460351,0.002,2869.4,2868.8,10.46534252]
[1769393460551,0.002,2869.4,2868.9,0.89464403]
[1769393461172,0.002,2869.4,2868.9,10.05270719]
[1769393461362,0.002,2869.4,2869.0,0.87138375]
[1769393462479,0.002,2869.4,2868.9,1.76604115]
[1769393462656,0.002,2869.4,2868.9,0.89464403]
[1769393463179,12.66192827,2869.4,2868.8,0.87143679]
[1769393463394,12.66192827,2869.4,2868.7,0.87146024]
[1769393463689,12.66192827,2869.4,2868.2,0.87160802]
[1769393463865,12.66192827,2869.4,2868.0,0.73]
[1769393464067,12.20600393,2869.1,2868.0,0.73]
[1769393464280,12.20600393,2869.1,2867.8,0.87172543]
[1769393464281,12.20600393,2869.0,2867.8,0.87172543]
[1769393464458,9.17850104,2869.1,2867.8,0.87172543]
[1769393464459,12.20600393,2868.8,2867.8,0.87172543]
[1769393464664,12.20600393,2868.8,2867.6,0.87178973]
[1769393464863,12.20600393,2868.8,2867.8,0.87174402]
[1769393465065,12.20600393,2868.6,2867.8,0.87173601]
[1769393465494,12.20600393,2868.6,2867.6,3.48722973]
[1769393465495,12.20600393,2868.6,2867.6,10.02987233]
[1769393465790,12.93600393,2869.1,2867.6,10.02987233]
[1769393465992,12.93600393,2869.1,2867.6,10.10644334]
[1769393466293,12.93600393,2869.1,2867.8,9.15806316]
[1769393466494,14.22960432,2869.1,2867.9,0.91580632]
[1769393466862,14.22960432,2869.1,2867.9,10.07386948]
[1769393467162,12.20600393,2869.1,2867.9,10.80386948]
[1769393467573,12.20600393,2869.1,2867.9,1.64580632]
[1769393467777,12.20600393,2869.1,2867.8,0.87172529]
[1769393467997,12.20600393,2869.1,2867.9,0.87171217]
[1769393468860,12.20600393,2869.1,2867.4,0.73]
[1769393469064,13.07736004,2869.1,2867.7,0.87177743]
[1769393469365,12.20600393,2869.1,2867.8,0.87174634]
[1769393469566,12.20600393,2868.9,2867.8,0.87174634]
[1769393469789,12.20600393,2868.7,2867.5,0.87183958]
[1769393471365,13.51373882,2869.0,2867.6,9.15806316]
[1769393471591,12.20600393,2869.0,2867.6,9.15806316]
[1769393471767,12.20600393,2869.0,2867.8,9.15806316]
[1769393473185,0.002,2868.9,2867.8,9.15806316]
[1769393473697,0.002,2868.9,2868.0,9.15806316]
[1769393473863,0.002,2868.9,2868.2,9.15806316]
[1769393474377,0.002,2868.9,2868.1,2.52512061]
[1769393474378,12.20800393,2868.9,2868.1,2.52512061]
[1769393475086,12.20800393,2868.9,2868.1,1.79512061]
[1769393475291,0.002,2868.9,2868.1,1.79512061]
[1769393475605,12.20600393,2868.8,2868.1,0.92346342]
[1769393475814,12.20600393,2868.8,2867.1,3.48778307]
[1769393475815,12.20600393,2868.6,2866.6,0.8721133]
[1769393476107,13.42515041,2868.9,2866.6,12.55531746]
[1769393476108,12.20600393,2868.4,2866.6,12.55531746]
[1769393477310,12.232845,2868.2,2866.9,11.02977517]
[1769393477603,12.232845,2868.2,2866.9,0.07657101]
[1769393478007,12.232845,2868.2,2866.9,0.87200561]
[1769393478212,12.232845,2868.0,2866.9,0.87200561]
[1769393480096,12.232845,2868.0,2866.7,3.48832767]
[1769393480716,12.962845,2867.9,2866.7,3.48832767]
[1769393481477,12.232845,2867.9,2866.8,10.95320416]
[1769393481697,12.232845,2868.6,2867.0,10.95320416]
[1769393481899,12.962845,2868.4,2867.0,10.95320416]
[1769393482411,12.962845,2868.4,2867.1,0.87196121]
[1769393484993,12.232845,2868.4,2867.1,0.87196121]
[1769393485188,12.232845,2868.4,2867.1,11.82516537]
[1769393485384,12.232845,2868.8,2867.1,11.90173638]
[1769393485709,13.4563295,2868.8,2867.3,10.95320416]
[1769393485941,12.962845,2868.8,2867.3,10.95320416]
[1769393486107,12.232845,2868.8,2867.3,10.95320416]
[1769393486508,12.232845,2868.8,2867.5,11.02977517]
[1769393488599,12.232845,2868.8,2867.6,0.87180917]
[1769393488826,12.232845,2868.8,2867.6,11.82501333]
[1769393489131,0.002,2868.9,2867.6,11.82501333]
[1769393489631,0.002,2868.9,2867.8,10.95320416]
[1769393489835,0.002,2868.9,2868.0,10.95320416]
[1769393490604,0.002,2868.9,2868.1,11.82486135]
[1769393490833,0.002,2869.4,2868.2,10.95320416]
[1769393491039,0.002,2869.4,2868.2,10.95120416]
[1769393491338,12.234845,2869.4,2868.1,0.9482282]
[1769393492840,12.234845,2869.4,2868.1,11.89943236]
[1769393494313,0.002,2869.4,2868.3,11.02777517]
[1769393494640,0.002,2869.4,2868.4,10.95120416]
[1769393494822,0.002,2869.4,2868.5,0.87153564]
[1769393495146,0.002,2869.4,2868.5,11.8227398]
[1769393495738,0.002,2869.4,2868.5,0.87153564]
[1769393496047,12.82304363,2869.4,2868.5,0.87153564]
[1769393496719,12.82304363,2869.4,2868.2,0.73]
[1769393496920,12.82104363,2869.2,2868.3,0.87159641]
[1769393497745,12.82104363,2869.2,2868.1,0.87164182]
[1769393497940,12.82104363,2869.2,2868.2,0.87161598]
[1769393498144,0.002,2869.4,2868.2,11.82282014]
[1769393498447,0.002,2869.4,2868.3,10.95120416]
[1769393498644,0.002,2869.0,2868.3,10.95120416]
[1769393498947,0.002,2869.0,2868.4,0.87156602]
[1769393501059,0.002,2869.0,2868.2,3.48626411]
[1769393501469,12.82304363,2869.0,2868.2,3.48626411]
[1769393501832,0.002,2869.0,2868.2,3.48626411]
[1769393502029,12.82304363,2869.0,2868.2,3.48626411]
[1769393502952,12.82304363,2869.0,2868.0,3.48667134]
[1769393503844,0.002,2869.0,2868.0,14.4378755]
[1769393504050,0.002,2869.0,2868.1,11.02777517]
[1769393504933,0.002,2869.0,2868.2,0.8716268]
[1769393505132,0.002,2869.0,2868.2,11.82283096]
[1769393507266,0.002,2869.0,2868.2,12.55283096]
[1769393509352,0.002,2869.4,2868.3,11.02777517]
[1769393511058,0.002,2869.4,2868.4,11.15253297]
[1769393511259,0.001,2869.0,2868.6,0.87150526]
[1769393511867,0.0010029,2869.2,2868.6,0.87150526]
[1769393513669,0.0010029,2869.2,2868.5,3.48602105]
[1769393518943,0.002,2869.7,2868.7,16.35348784]
[1769393519143,12.82304363,2869.7,2868.8,0.9635703]
[1769393519349,12.82304363,2869.7,2868.8,0.73]
[1769393519874,12.82304363,2869.7,2868.9,0.87141413]
[1769393521048,12.82104363,2870.2,2869.0,12.89113722]
[1769393521250,12.82304363,2869.9,2868.9,13.76255135]
[1769393521964,12.82304363,2869.9,2868.9,0.87141413]
[1769393523387,12.82304363,2869.9,2868.8,1.60143244]
[1769393524059,12.82304363,2869.9,2868.8,0.731]
[1769393524456,12.82304363,2869.9,2868.8,1.60244306]
[1769393524457,12.43912168,2869.4,2868.8,1.60244306]
[1769393525098,12.43912168,2869.4,2868.1,0.07657101]
[1769393525415,12.43912168,2869.2,2868.1,0.07657101]
[1769393525602,12.43912168,2869.2,2868.2,0.87160787]
[1769393525918,12.43912168,2869.0,2868.2,0.87160787]
[1769393526120,12.43912168,2869.0,2868.0,3.48673763]
[1769393528083,0.002,2869.5,2868.4,12.60698286]
[1769393528289,13.17112168,2869.5,2868.4,12.60698286]
[1769393528821,13.17112168,2869.5,2868.4,0.001]
[1769393529115,12.43912168,2869.3,2868.4,0.001]
[1769393529319,12.43912168,2869.3,2868.4,12.60698286]
[1769393529320,0.73,2869.3,2868.4,12.60698286]
[1769393530021,13.16912168,2869.3,2868.4,0.001]
[1769393533506,13.16912168,2869.3,2868.2,0.8716268]
[1769393533713,12.43912168,2869.1,2868.2,0.8716268]
[1769393534222,12.43912168,2869.1,2868.0,3.48671754]
[1769393534223,12.43912168,2869.1,2868.1,0.87164723]
[1769393535200,12.43912168,2869.1,2868.0,0.87168758]
[1769393535398,12.43912168,2868.9,2868.0,0.87168758]
[1769393536805,0.73,2868.9,2868.0,13.77097196]
[1769393537010,0.73,2869.0,2868.3,0.001]
[1769393537407,0.002,2868.9,2868.3,12.90028438]
[1769393539419,0.002,2868.9,2868.3,0.001]
[1769393540534,0.002,2868.9,2868.3,12.90028438]
[1769393540743,0.002,2869.5,2868.4,12.89928438]
[1769393541105,0.002,2869.5,2868.6,12.89928438]
[1769393541343,12.516723,2869.5,2868.3,0.001]
[1769393541507,12.516723,2869.5,2868.3,0.87259641]
[1769393541708,12.516723,2869.5,2868.3,13.77188079]
[1769393549250,12.516723,2869.5,2868.3,0.87259641]
[1769393549543,12.516723,2869.5,2868.9,0.014785]
[1769393549956,12.516723,2869.3,2868.9,0.014785]
[1769393550665,12.516723,2869.3,2868.5,0.001]
[1769393550868,0.04356615,2869.2,2868.5,0.001]
[1769393551071,12.514723,2869.1,2868.5,0.001]
[1769393551361,13.7663953,2869.1,2868.5,0.001]
[1769393551861,14.4963953,2869.1,2868.5,0.001]
[1769393553159,14.4963953,2869.1,2868.3,0.001]
[1769393554861,12.514723,2869.1,2868.3,0.001]
[1769393555063,0.73,2869.0,2868.3,0.001]
[1769393556381,13.244723,2869.1,2868.3,0.001]
[1769393557683,0.002,2869.3,2868.3,12.47598895]
[1769393558969,0.002,2869.3,2868.4,13.34655497]
[1769393561189,0.002,2869.3,2868.5,12.47498895]
[1769393561589,0.002,2869.3,2868.5,12.47598895]
[1769393561790,0.001,2868.9,2868.6,12.47498895]
[1769393562489,2.9e-06,2869.5,2868.6,12.47498895]
[1769393563185,2.9e-06,2869.5,2868.7,0.87147488]
[1769393563380,2.9e-06,2869.5,2868.7,13.34646383]
[1769393564788,12.62039751,2869.5,2868.6,0.87149285]
[1769393565783,12.62039751,2869.5,2868.5,0.001]
[1769393566291,12.62039751,2869.5,2868.5,12.47598895]
[1769393567290,12.62039751,2869.5,2868.5,0.001]
[1769393568616,12.62039461,2869.3,2868.5,0.001]
[1769393568789,13.35039461,2869.3,2868.5,0.001]
[1769393569161,13.35039461,2869.3,2868.0,1.60166598]
[1769393569375,12.62039461,2869.1,2867.8,0.87172074]
[1769393569789,12.62039461,2869.1,2867.6,3.48713355]
[1769393569991,12.62039461,2868.9,2867.6,3.48713355]
[1769393570588,12.62039461,2868.9,2867.6,0.87180917]
[1769393571795,12.62039461,2868.9,2867.4,0.87186998]
[1769393572103,13.35039461,2868.8,2867.4,13.42342994]
[1769393572400,12.62039461,2868.8,2867.4,13.42342994]
[1769393572698,0.73,2868.7,2867.5,12.47498895]
[1769393572922,13.35039461,2868.7,2867.5,12.47498895]
[1769393573209,14.88705947,2869.0,2867.7,12.47498895]
[1769393573368,0.73,2868.9,2867.7,12.47498895]
[1769393573570,12.62039461,2869.0,2867.8,13.34673732]
[1769393573768,13.35039461,2869.0,2867.8,13.34673732]
[1769393575371,0.002,2868.6,2867.8,13.34673732]
[1769393582006,0.002,2868.6,2867.8,13.42330833]
[1769393582206,0.002,2868.6,2867.8,14.15330833]
[1769393582413,0.002,2868.6,2867.8,1.60174837]
[1769393584186,0.002,2868.6,2867.8,13.71325385]
[1769393588537,12.8799233,2868.6,2867.8,1.60174612]
[1769393588705,14.14236276,2868.6,2867.8,1.60174612]
[1769393589225,14.14236276,2868.6,2867.8,0.73]
[1769393589426,14.14236276,2868.6,2867.7,0.87176136]
[1769393589627,14.14236276,2868.6,2867.6,0.001]
[1769393589826,12.8779233,2868.4,2867.6,0.87280688]
[1769393590217,12.8779233,2868.4,2867.6,0.001]
[1769393591342,0.002,2868.6,2867.6,12.11250548]
[1769393591343,12.8799233,2868.6,2867.6,12.11250548]
[1769393591501,0.002,2868.6,2867.6,12.11250548]
[1769393591701,0.002,2868.6,2867.7,12.11150548]
[1769393592432,12.8799233,2868.6,2867.7,12.11150548]
[1769393593136,12.8799233,2868.6,2867.8,0.87174837]
[1769393595948,0.002,2868.6,2867.9,12.11150548]
[1769393597553,0.002,2868.6,2868.0,0.87168758]
[1769393598953,0.002,2868.6,2868.0,12.79862682]
[1769393599156,0.002,2868.6,2868.0,12.79962682]
[1769393603477,0.002,2868.6,2868.0,0.87268758]
[1769393603972,0.002,2868.6,2868.0,0.001]
[1769393611486,0.002,2868.6,2868.2,0.001]
[1769393613270,0.002,2868.8,2868.2,0.001]
[1769393613456,0.002,2868.8,2868.2,12.1844108]
[1769393615091,0.002,2868.8,2868.2,0.001]
[1769393616796,0.002,2868.8,2868.2,12.1844108]
[1769393617469,0.002,2868.8,2868.3,0.87159641]
[1769393618101,12.47023765,2869.5,2868.5,12.1834108]
[1769393618463,2.9e-06,2869.5,2868.5,12.1834108]
[1769393619594,2.9e-06,2869.5,2868.7,12.1834108]
[1769393619967,2.9e-06,2869.5,2868.9,12.1834108]
[1769393620268,0.002,2869.9,2869.2,12.1834108]
[1769393620483,0.002,2870.3,2869.1,12.4169811]
[1769393620686,0.002,2870.5,2869.6,12.1834108]
[1769393620872,0.002,2870.5,2869.6,12.9134108]
[1769393621473,0.002,2870.5,2870.0,12.1834108]
[1769393621676,0.002,2870.7,2870.0,12.1834108]
[1769393623375,0.002,2870.3,2870.0,12.1834108]
[1769393623576,0.002,2870.7,2870.1,0.87104978]
[1769393627800,0.002,2871.1,2870.1,13.78446058]
[1769393628005,12.47223475,2871.1,2870.1,13.78446058]
[1769393628205,19.63908691,2871.1,2870.1,1.60104978]
[1769393628377,12.47023475,2871.0,2870.1,1.60104978]
[1769393629392,0.002,2871.1,2870.1,13.78446058]
[1769393629592,12.47023475,2871.0,2870.1,13.78446058]
[1769393635912,12.47023475,2871.0,2870.3,0.001]
[1769393636613,0.002,2871.1,2870.3,12.1844108]
[1769393638885,0.002,2871.1,2870.4,0.87095875]
[1769393639412,0.002,2871.1,2870.4,13.05436955]
[1769393640301,1e-08,2871.2,2870.5,12.1834108]
[1769393640506,0.002,2871.9,2870.8,12.1834108]
[1769393640507,12.47223475,2871.9,2870.8,12.1834108]
[1769393640889,12.47223475,2871.9,2870.9,0.87080706]
[1769393641206,12.47023475,2871.8,2870.9,0.87080706]
[1769393641515,12.47223475,2871.7,2870.9,0.87080706]
[1769393641719,12.47223475,2871.7,2870.8,15.66663905]